fUSD/lending_fUSD_20241003
["ID","MTS","AMOUNT","RATE_DAILY","PERIOD"]
[339779082,1727982663201,-1914.28,0.00033424,120]
[339779083,1727982663210,-500.0,0.00033424,120]
[339779084,1727982663220,-723.91,0.00033424,120]
[339779085,1727982663230,-1871.74,0.00033424,120]
[339779086,1727982663240,-500.0,0.00033424,120]
[339779087,1727982663249,-500.0,0.00033424,120]
[339779088,1727982663258,-500.0,0.00033424,120]
[339779089,1727982663268,-830.77,0.00033424,120]
[339779090,1727982663277,-150.0,0.00033424,120]
[339779091,1727982663286,-536.35,0.00033424,120]
[339779092,1727982663295,-626.98,0.00033424,120]
[339779093,1727982663304,-500.0,0.00033424,120]
[339779094,1727982663314,-774.17,0.00033424,120]
[339779095,1727982663324,-688.59,0.00033424,120]
[339779096,1727982663333,-500.0,0.00033424,120]
[339779097,1727982663343,-500.0,0.00033424,120]
[339779098,1727982663355,-1145.91,0.00033424,30]
[339779099,1727982663364,-813.96,0.00033424,120]
[339779100,1727982663374,-500.0,0.00033424,120]
[339779101,1727982663383,-1044.66,0.00033424,120]
[339779102,1727982663392,-500.0,0.00033424,120]
[339779103,1727982663402,-151.0,0.00033424,7]
[339779104,1727982663411,-500.0,0.00033424,120]
[339779105,1727982663421,-500.0,0.00033424,120]
[339779106,1727982663435,-489.02237188,0.00033424,120]
[339779107,1727982663444,-1070.09,0.00033424,120]
[339779108,1727982663454,-500.0,0.00033424,120]
[339779109,1727982663464,-500.0,0.00033424,120]
[339779110,1727982663473,-843.23,0.00033424,120]
[339779111,1727982663483,-697.01,0.00033424,120]
[339779112,1727982663492,-512.66,0.00033424,120]
[339779113,1727982663502,-500.0,0.00033424,120]
[339779114,1727982663511,-1162.09,0.00033424,120]
[339779115,1727982663521,-500.0,0.00033424,120]
[339779116,1727982663531,-500.0,0.00033424,120]
[339779117,1727982663540,-695.65,0.00033424,120]
[339779118,1727982663549,-500.0,0.00033424,120]
[339779119,1727982663559,-500.0,0.00033424,120]
[339779120,1727982663568,-500.0,0.00033424,120]
[339779121,1727982663578,-500.0,0.00033424,120]
[339779122,1727982663589,-1291.62,0.00033424,120]
[339779123,1727982663598,-538.18,0.00033424,120]
[339779124,1727982663608,-151.0,0.00033424,7]
[339779125,1727982663618,-647.33,0.00033424,120]
[339779126,1727982663627,-151.0,0.00033424,7]
[339779127,1727982663637,-500.0,0.00033424,120]
[339779128,1727982663646,-500.0,0.00033424,120]
[339779129,1727982663655,-1613.024768,0.00033424,7]
[339779130,1727982663665,-500.0,0.00033424,120]
[339779131,1727982663677,-1613.024768,0.00033424,7]
[339779132,1727982663691,-745.31,0.00033424,120]
[339779133,1727982663701,-500.0,0.00033424,5]
[339779134,1727982663711,-500.0,0.00033424,120]
[339779135,1727982663721,-971.05,0.00033424,120]
[339779136,1727982663731,-500.0,0.00033424,120]
[339779137,1727982663740,-500.0,0.00033424,120]
[339779138,1727982663750,-151.0,0.00033424,7]
[339779139,1727982663759,-500.0,0.00033424,120]
[339779140,1727982663769,-500.0,0.00033424,120]
[339779141,1727982663778,-151.0,0.00033424,7]
[339779142,1727982663788,-500.0,0.00033424,120]
[339779143,1727982663797,-500.0,0.00033424,120]
[339779144,1727982663808,-1146.72,0.00033424,120]
[339779145,1727982663818,-500.0,0.00033424,120]
[339779146,1727982663828,-498.156299,0.00033424,7]
[339779147,1727982663838,-151.0,0.00033424,7]
[339779148,1727982663849,-500.0,0.00033424,120]
[339779149,1727982663859,-498.156299,0.00033424,7]
[339779150,1727982663869,-500.0,0.00033424,120]
[339779151,1727982663879,-500.0,0.00033424,120]
[339779152,1727982663890,-500.0,0.00033424,120]
[339779153,1727982663899,-559.78587684,0.00033424,120]
[339779154,1727982663909,-868.99,0.00033424,120]
[339779155,1727982663919,-500.0,0.00033424,120]
[339779156,1727982663931,-500.0,0.00033424,120]
[339779157,1727982663941,-500.0,0.00033424,120]
[339779158,1727982663950,-500.0,0.00033424,120]
[339779159,1727982663960,-785.7,0.00033424,120]
[339779160,1727982663971,-500.0,0.00033424,120]
[339779161,1727982663980,-922.29,0.00033424,120]
[339779162,1727982663990,-151.0,0.00033424,7]
[339779163,1727982664001,-500.0,0.00033424,120]
[339779164,1727982664010,-151.0,0.00033424,7]
[339779165,1727982664020,-500.0,0.00033424,120]
[339779166,1727982664030,-500.0,0.00033424,120]
[339779167,1727982664040,-500.0,0.00033424,120]
[339779168,1727982664049,-500.0,0.00033424,120]
[339779169,1727982664058,-515.13118278,0.00033424,120]
[339779170,1727982664068,-1005.98,0.00033424,120]
[339779171,1727982664077,-1265.11,0.00033424,120]
[339779172,1727982664087,-500.0,0.00033424,120]
[339779173,1727982664096,-269.629633,0.00033424,7]
[339779174,1727982664106,-1058.62,0.00033424,120]
[339779175,1727982664116,-1000.0,0.00033424,120]
[339779176,1727982664126,-500.0,0.00033424,120]
[339779177,1727982664135,-269.629633,0.00033424,7]
[339779178,1727982664145,-1285.4,0.00033424,120]
[339779179,1727982664156,-500.0,0.00033424,120]
[339779180,1727982664166,-151.0,0.00033424,7]
[339779181,1727982664176,-500.0,0.00033424,120]
[339779182,1727982664185,-500.0,0.00033424,120]
[339779183,1727982664195,-910.74,0.00033424,120]
[339779184,1727982664206,-2066.566878,0.00033424,7]
[339779185,1727982664216,-500.0,0.00033424,120]
[339779186,1727982664225,-1109.6,0.00033424,120]
[339779187,1727982664236,-151.0,0.00033424,7]
[339779188,1727982664245,-354.51567252,0.00033424,120]
[339779189,1727982664255,-2066.566878,0.00033424,7]
[339779190,1727982664265,-500.0,0.00033424,120]
[339779191,1727982664275,-500.0,0.00033424,120]
[339779192,1727982664285,-151.0,0.00033424,7]
[339779193,1727982664295,-523.85,0.00033424,120]
[339779194,1727982664305,-502.79366129,0.00033424,120]
[339779195,1727982664315,-151.0,0.00033424,7]
[339779196,1727982664324,-500.0,0.00033424,120]
[339779197,1727982664334,-2405.98,0.00033424,120]
[339779198,1727982664343,-500.0,0.00033424,120]
[339779199,1727982664355,-500.0,0.00033424,120]
[339779200,1727982664366,-532.25,0.00033424,120]
[339779201,1727982664376,-500.0,0.00033424,120]
[339779202,1727982664386,-500.0,0.00033424,120]
[339779203,1727982664401,-1257.82,0.00033424,120]
[339779204,1727982664410,-202.33442,0.00033424,7]
[339779205,1727982664420,-509.33,0.00033424,120]
[339779206,1727982664431,-500.0,0.00033424,120]
[339779207,1727982664440,-701.66,0.00033424,120]
[339779208,1727982664450,-500.0,0.00033424,120]
[339779209,1727982664460,-1224.27,0.00033424,120]
[339779210,1727982664469,-1189.92,0.00033424,120]
[339779211,1727982664478,-500.0,0.00033424,120]
[339779212,1727982664487,-500.0,0.00033424,120]
[339779213,1727982664497,-861.35844,0.00033424,7]
[339779214,1727982664507,-733.61,0.00033424,120]
[339779215,1727982664517,-576.54,0.00033424,120]
[339779216,1727982664527,-502.59983276,0.00033424,120]
[339779217,1727982664536,-862.23,0.00033424,120]
[339779218,1727982664545,-500.0,0.00033424,120]
[339779219,1727982664555,-721.29,0.00033424,120]
[339779220,1727982664565,-861.35844,0.00033424,7]
[339779221,1727982664574,-1136.04,0.00033424,120]
[339779222,1727982664585,-668.9,0.00033424,120]
[339779223,1727982664595,-500.0,0.00033424,120]
[339779224,1727982664604,-572.02,0.00033424,120]
[339779225,1727982664614,-169.52561602,0.00033424,120]
[339779226,1727982664625,-659.41,0.00033424,120]
[339779227,1727982664634,-740.9,0.00033424,120]
[339779228,1727982664643,-151.0,0.00033424,7]
[339779229,1727982664652,-650.73,0.00033424,120]
[339779230,1727982664662,-219.354505,0.00033424,7]
[339779231,1727982664671,-500.0,0.00033424,120]
[339779232,1727982664683,-151.0,0.00033424,7]
[339779233,1727982664692,-219.354505,0.00033424,7]
[339779234,1727982664701,-870.17,0.00033424,120]
[339779235,1727982664710,-500.0,0.00033424,120]
[339779236,1727982664720,-500.0,0.00033424,120]
[339779237,1727982664730,-530.24,0.00033424,120]
[339779238,1727982664740,-639.02,0.00033424,120]
[339779239,1727982664749,-151.0,0.00033424,7]
[339779240,1727982664762,-422.263531,0.00033424,7]
[339779241,1727982664772,-500.0,0.00033424,120]
[339779242,1727982664782,-500.0,0.00033424,120]
[339779243,1727982664792,-836.27,0.00033424,120]
[339779244,1727982664802,-151.0,0.00033424,7]
[339779245,1727982664812,-422.263531,0.00033424,7]
[339779246,1727982664822,-500.0,0.00033424,120]
[339779247,1727982664832,-500.0,0.00033424,120]
[339779248,1727982664841,-500.0,0.00033424,120]
[339779249,1727982664851,-1752.48,0.00033424,120]
[339779250,1727982664860,-1674.45,0.00033424,120]
[339779251,1727982664870,-1168.54,0.00033424,120]
[339779252,1727982664879,-500.0,0.00033424,120]
[339779253,1727982664888,-500.0,0.00033424,120]
[339779254,1727982664898,-2430.04,0.00033424,120]
[339779255,1727982664908,-421.715679,0.00033424,7]
[339779256,1727982664919,-500.0,0.00033424,120]
[339779257,1727982664929,-20000.0,0.00033424,2]
[339779258,1727982664939,-500.0,0.00033424,120]
[339779259,1727982664949,-500.0,0.00033424,120]
[339779260,1727982664961,-500.0,0.00033424,120]
[339779261,1727982664971,-151.0,0.00033424,7]
[339779262,1727982664980,-500.0,0.00033424,90]
[339779263,1727982664989,-421.715679,0.00033424,7]
[339779264,1727982664999,-2235.25,0.00033424,120]
[339779265,1727982665009,-749.88,0.00033424,24]
[339779266,1727982665019,-500.0,0.00033424,120]
[339779267,1727982665029,-1544.035121,0.00033424,7]
[339779268,1727982665039,-2252.62,0.00033424,120]
[339779269,1727982665048,-500.0,0.00033424,120]
[339779270,1727982665057,-1544.035121,0.00033424,7]
[339779271,1727982665067,-1158.96,0.00033424,120]
[339779272,1727982665077,-500.0,0.00033424,120]
[339779273,1727982665087,-500.0,0.00033424,120]
[339779274,1727982665096,-500.0,0.00033424,120]
[339779275,1727982665106,-504.94,0.00033424,120]
[339779276,1727982665115,-759.01,0.00033424,120]
[339779277,1727982665125,-500.0,0.00033424,120]
[339779278,1727982665134,-1642.55,0.00033424,120]
[339779279,1727982665144,-3818.385764,0.00033424,7]
[339779280,1727982665153,-1126.69,0.00033424,120]
[339779281,1727982665163,-1518.09,0.00033424,120]
[339779282,1727982665172,-500.0,0.00033424,120]
[339779283,1727982665182,-3818.385764,0.00033424,7]
[339779284,1727982665192,-151.0,0.00033424,7]
[339779285,1727982665203,-500.0,0.00033424,120]
[339779286,1727982665212,-500.0,0.00033424,120]
[339779287,1727982665222,-2332.95,0.00033424,120]
[339779288,1727982665232,-881.14,0.00033424,120]
[339779289,1727982665241,-1062.68,0.00033424,120]
[339779290,1727982665250,-1089.61,0.00033424,120]
[339779291,1727982665260,-500.0,0.00033424,120]
[339779292,1727982665269,-500.0,0.00033424,120]
[339779293,1727982665279,-1981.95,0.00033424,120]
[339779294,1727982665288,-500.0,0.00033424,120]
[339779295,1727982665299,-500.0,0.00033424,120]
[339779296,1727982665308,-500.0,0.00033424,120]
[339779297,1727982665318,-5241.23,0.00033424,120]
[339779298,1727982665327,-500.0,0.00033424,120]
[339779299,1727982665337,-500.0,0.00033424,120]
[339779300,1727982665347,-2018.74,0.00033424,120]
[339779301,1727982665360,-500.0,0.00033424,120]
[339779302,1727982665369,-500.0,0.00033424,120]
[339779303,1727982665378,-500.0,0.00033424,120]
[339779304,1727982665388,-535.49,0.00033424,120]
[339779305,1727982665398,-500.0,0.00033424,120]
[339779306,1727982665408,-500.0,0.00033424,120]
[339779307,1727982665417,-500.0,0.00033424,120]
[339779308,1727982665429,-1250.03,0.00033424,120]
[339779309,1727982665439,-2902.72,0.00033424,120]
[339779310,1727982665448,-500.0,0.00033424,120]
[339779311,1727982665458,-2587.44,0.00033424,120]
[339779312,1727982665468,-311.544205,0.00033424,7]
[339779313,1727982665477,-500.0,0.00033424,120]
[339779314,1727982665487,-500.0,0.00033424,120]
[339779315,1727982665496,-2510.63,0.00033424,120]
[339779316,1727982665507,-723.92,0.00033424,120]
[339779317,1727982665517,-311.544205,0.00033424,7]
[339779318,1727982665526,-711.37,0.00033424,120]
[339779319,1727982665536,-500.0,0.00033424,120]
[339779320,1727982665545,-1791.96,0.00033424,120]
[339779321,1727982665556,-151.0,0.00033424,7]
[339779322,1727982665566,-3166.02,0.00033424,120]
[339779323,1727982665576,-1267.03,0.00033424,120]
[339779324,1727982665586,-500.0,0.00033424,120]
[339779325,1727982665595,-500.0,0.00033424,120]
[339779326,1727982665604,-619.48,0.00033424,120]
[339779327,1727982665616,-151.0,0.00033424,7]
[339779328,1727982665627,-1769.87,0.00033424,120]
[339779329,1727982665638,-621.03,0.00033424,120]
[339779330,1727982665648,-856.57,0.00033424,120]
[339779331,1727982665659,-500.0,0.00033424,120]
[339779332,1727982665669,-500.0,0.00033424,120]
[339779333,1727982665679,-500.0,0.00033424,120]
[339779334,1727982665689,-500.0,0.00033424,120]
[339779335,1727982665698,-3322.9,0.00033424,120]
[339779336,1727982665708,-500.0,0.00033424,120]
[339779337,1727982665718,-500.0,0.00033424,120]
[339779338,1727982665727,-972.85,0.00033424,120]
[339779339,1727982665737,-500.0,0.00033424,120]
[339779340,1727982665747,-1246.86,0.00033424,120]
[339779341,1727982665757,-500.0,0.00033424,120]
[339779342,1727982665767,-500.0,0.00033424,120]
[339779343,1727982665776,-730.31,0.00033424,120]
[339779344,1727982665785,-830.42,0.00033424,120]
[339779345,1727982665795,-500.0,0.00033424,120]
[339779346,1727982665804,-588.05,0.00033424,120]
[339779347,1727982665814,-1243.24,0.00033424,120]
[339779348,1727982665824,-500.0,0.00033424,120]
[339779349,1727982665834,-500.0,0.00033424,120]
[339779350,1727982665843,-555.63,0.00033424,120]
[339779351,1727982665852,-1230.46,0.00033424,120]
[339779352,1727982665862,-1362.61,0.00033424,120]
[339779353,1727982665871,-500.0,0.00033424,120]
[339779354,1727982665881,-1319.53,0.00033424,120]
[339779355,1727982665890,-981.99,0.00033424,120]
[339779356,1727982665900,-825.83,0.00033424,120]
[339779357,1727982665910,-500.0,0.00033424,120]
[339779358,1727982665921,-1051.47,0.00033424,120]
[339779359,1727982665933,-1494.54,0.00033424,120]
[339779360,1727982665943,-1306.0,0.00033424,120]
[339779361,1727982665953,-1031.9,0.00033424,120]
[339779362,1727982665962,-572.36,0.00033424,120]
[339779363,1727982665971,-500.0,0.00033424,120]
[339779364,1727982665981,-532.99,0.00033424,120]
[339779365,1727982665991,-1275.22,0.00033424,120]
[339779366,1727982666000,-500.0,0.00033424,120]
[339779367,1727982666010,-3179.4,0.00033424,120]
[339779368,1727982666019,-1463.89,0.00033424,120]
[339779369,1727982666028,-2471.4,0.00033424,120]
[339779370,1727982666038,-1965.545168,0.00033424,7]
[339779371,1727982666047,-500.0,0.00033424,120]
[339779372,1727982666057,-2444.12,0.00033424,2]
[339779373,1727982666066,-1508.0,0.00033424,120]
[339779374,1727982666075,-1142.79,0.00033424,120]
[339779375,1727982666085,-641.35,0.00033424,120]
[339779376,1727982666095,-1965.545168,0.00033424,7]
[339779377,1727982666105,-1847.83,0.00033424,120]
[339779378,1727982666114,-500.0,0.00033424,120]
[339779379,1727982666124,-500.0,0.00033424,120]
[339779380,1727982666134,-500.0,0.00033424,120]
[339779381,1727982666144,-500.0,0.00033424,120]
[339779382,1727982666153,-500.0,0.00033424,90]
[339779383,1727982666163,-3715.52,0.00033424,120]
[339779384,1727982666172,-532.65,0.00033424,120]
[339779385,1727982666183,-500.0,0.00033424,120]
[339779386,1727982666193,-597.98,0.00033424,120]
[339779387,1727982666203,-500.0,0.00033424,120]
[339779388,1727982666213,-1463.16,0.00033424,120]
[339779389,1727982666223,-842.06,0.00033424,120]
[339779390,1727982666232,-1487.59,0.00033424,120]
[339779391,1727982666242,-1269.98,0.00033424,120]
[339779392,1727982666252,-151.0,0.00033424,7]
[339779393,1727982666261,-959.6,0.00033424,120]
[339779394,1727982666271,-500.0,0.00033424,120]
[339779395,1727982666281,-500.0,0.00033424,120]
[339779396,1727982666291,-689.35,0.00033424,120]
[339779397,1727982666301,-3520.64,0.00033424,120]
[339779398,1727982666311,-500.0,0.00033424,120]
[339779399,1727982666469,-742.8,0.00033424,120]
[339779400,1727982666479,-500.0,0.00033424,120]
[339779401,1727982666488,-641.2,0.00033424,120]
[339779402,1727982666498,-500.0,0.00033424,120]
[339779403,1727982666507,-974.01,0.00033424,120]
[339779404,1727982666516,-1339.77,0.00033424,120]
[339779405,1727982666526,-1537.62,0.00033424,120]
[339779406,1727982666535,-500.0,0.00033424,5]
[339779407,1727982666545,-1758.53,0.00033424,120]
[339779408,1727982666554,-500.0,0.00033424,120]
[339779409,1727982666564,-2075.75,0.00033424,120]
[339779410,1727982666575,-3502.45,0.00033424,120]
[339779411,1727982666584,-500.0,0.00033424,120]
[339779412,1727982666594,-500.0,0.00033424,120]
[339779413,1727982666603,-1422.75,0.00033424,120]
[339779414,1727982666612,-500.0,0.00033424,120]
[339779415,1727982666622,-500.0,0.00033424,120]
[339779416,1727982666631,-659.84,0.00033424,120]
[339779417,1727982666641,-500.0,0.00033424,120]
[339779418,1727982666650,-502.5,0.00033424,120]
[339779419,1727982666660,-1906.97,0.00033424,120]
[339779420,1727982666669,-500.0,0.00033424,120]
[339779421,1727982666681,-500.0,0.00033424,120]
[339779422,1727982666691,-2484.29,0.00033424,120]
[339779423,1727982666700,-1273.56,0.00033424,120]
[339779424,1727982666711,-500.0,0.00033424,120]
[339779425,1727982666720,-500.0,0.00033424,120]
[339779426,1727982666732,-500.0,0.00033424,120]
[339779427,1727982666742,-2004.82,0.00033424,120]
[339779428,1727982666751,-500.0,0.00033424,120]
[339779429,1727982666761,-1043.14,0.00033424,120]
[339779430,1727982666770,-500.0,0.00033424,120]
[339779431,1727982666780,-1445.97,0.00033424,120]
[339779432,1727982666789,-877.0,0.00033424,120]
[339779433,1727982666799,-500.0,0.00033424,120]
[339779434,1727982666808,-500.0,0.00033424,120]
[339779435,1727982666818,-500.0,0.00033424,120]
[339779436,1727982666827,-1443.35,0.00033424,120]
[339779437,1727982666837,-3476.01,0.00033424,120]
[339779438,1727982666847,-638.81598468,0.00033424,120]
[339779439,1727982666857,-2600.0,0.00033424,120]
[339779440,1727982666866,-562.74,0.00033424,120]
[339779441,1727982666876,-500.0,0.00033424,120]
[339779442,1727982666886,-500.0,0.00033424,120]
[339779443,1727982666895,-500.0,0.00033424,120]
[339779444,1727982666905,-565.4,0.00033424,120]
[339779445,1727982666915,-500.0,0.00033424,120]
[339779446,1727982666925,-544.59,0.00033424,120]
[339779447,1727982666937,-500.0,0.00033424,120]
[339779448,1727982666947,-500.0,0.00033424,120]
[339779449,1727982666956,-1424.66,0.00033424,120]
[339779450,1727982666966,-500.0,0.00033424,120]
[339779451,1727982666976,-500.0,0.00033424,120]
[339779452,1727982666986,-597.33,0.00033424,120]
[339779453,1727982666995,-722.36,0.00033424,120]
[339779454,1727982667005,-1350.58,0.00033424,120]
[339779455,1727982667015,-1038.81,0.00033424,120]
[339779456,1727982667025,-612.91,0.00033424,120]
[339779457,1727982667035,-1000.0,0.00033424,120]
[339779458,1727982667045,-670.75,0.00033424,120]
[339779459,1727982667054,-500.0,0.00033424,120]
[339779460,1727982667063,-500.0,0.00033424,120]
[339779461,1727982667073,-500.0,0.00033424,120]
[339779462,1727982667083,-500.0,0.00033424,120]
[339779463,1727982667092,-500.0,0.00033424,120]
[339779464,1727982667102,-1301.07,0.00033424,120]
[339779465,1727982667112,-500.0,0.00033424,120]
[339779466,1727982667122,-500.0,0.00033424,120]
[339779467,1727982667132,-2082.62,0.00033424,120]
[339779468,1727982667142,-921.68,0.00033424,120]
[339779469,1727982667152,-1754.76,0.00033424,120]
[339779470,1727982667162,-500.0,0.00033424,120]
[339779471,1727982667172,-500.0,0.00033424,120]
[339779472,1727982667187,-500.0,0.00033424,120]
[339779473,1727982667204,-500.0,0.00033424,120]
[339779474,1727982667214,-500.0,0.00033424,120]
[339779475,1727982667224,-500.0,0.00033424,120]
[339779476,1727982667234,-581.43,0.00033424,120]
[339779477,1727982667243,-500.0,0.00033424,120]
[339779478,1727982667253,-809.83,0.00033424,120]
[339779479,1727982667263,-500.0,0.00033424,120]
[339779480,1727982667272,-1168.66,0.00033424,120]
[339779481,1727982667282,-500.0,0.00033424,120]
[339779482,1727982667291,-503.04135589,0.00033424,120]
[339779483,1727982667301,-500.0,0.00033424,120]
[339779484,1727982667310,-500.0,0.00033424,120]
[339779485,1727982667320,-1511.4,0.00033424,120]
[339779486,1727982667329,-590.69,0.00033424,120]
[339779487,1727982667339,-2449.82,0.00033424,120]
[339779488,1727982667348,-947.41,0.00033424,120]
[339779489,1727982667362,-500.0,0.00033424,120]
[339779490,1727982667371,-500.0,0.00033424,120]
[339779491,1727982667380,-500.0,0.00033424,120]
[339779492,1727982667389,-2091.47,0.00033424,120]
[339779493,1727982667399,-1803.74,0.00033424,120]
[339779494,1727982667409,-500.0,0.00033424,120]
[339779495,1727982667418,-500.0,0.00033424,120]
[339779496,1727982667430,-1448.94,0.00033424,120]
[339779497,1727982667439,-500.0,0.00033424,120]
[339779498,1727982667448,-500.0,0.00033424,120]
[339779499,1727982667457,-705.79,0.00033424,120]
[339779500,1727982667466,-500.0,0.00033424,120]
[339779501,1727982667475,-500.0,0.00033424,120]
[339779502,1727982667485,-500.0,0.00033424,120]
[339779503,1727982667496,-500.0,0.00033424,120]
[339779504,1727982667507,-1210.3,0.00033424,120]
[339779505,1727982667518,-1055.16,0.00033424,120]
[339779506,1727982667528,-1546.22,0.00033424,120]
[339779507,1727982667538,-500.0,0.00033424,120]
[339779508,1727982667548,-3557.83,0.00033424,120]
[339779509,1727982667557,-500.0,0.00033424,120]
[339779510,1727982667567,-500.0,0.00033424,120]
[339779511,1727982667576,-500.0,0.00033424,120]
[339779512,1727982667585,-698.03,0.00033424,120]
[339779513,1727982667595,-762.97,0.00033424,120]
[339779514,1727982667604,-151.0,0.00033424,7]
[339779515,1727982667613,-500.0,0.00033424,120]
[339779516,1727982667623,-500.0,0.00033424,120]
[339779517,1727982667632,-860.38,0.00033424,120]
[339779518,1727982667642,-151.0,0.00033424,7]
[339779519,1727982667651,-640.95,0.00033424,120]
[339779520,1727982667661,-150.0,0.00033424,120]
[339779521,1727982667671,-785.94,0.00033424,120]
[339779522,1727982667682,-826.0,0.00033424,120]
[339779523,1727982667692,-500.0,0.00033424,120]
[339779524,1727982667702,-654.3,0.00033424,120]
[339779525,1727982667712,-667.35,0.00033424,120]
[339779526,1727982667723,-1400.3,0.00033424,120]
[339779527,1727982667733,-500.0,0.00033424,120]
[339779528,1727982667742,-555.44,0.00033424,120]
[339779529,1727982667752,-500.0,0.00033424,120]
[339779530,1727982667762,-500.0,0.00033424,120]
[339779531,1727982667774,-500.0,0.00033424,120]
[339779532,1727982667785,-500.0,0.00033424,120]
[339779533,1727982667794,-773.15,0.00033424,120]
[339779534,1727982667805,-1448.05,0.00033424,120]
[339779535,1727982667814,-3246.43,0.00033424,120]
[339779536,1727982667824,-500.0,0.00033424,120]
[339779537,1727982667833,-500.0,0.00033424,120]
[339779538,1727982667843,-500.0,0.00033424,120]
[339779539,1727982667852,-1042.04,0.00033424,120]
[339779540,1727982667862,-1724.53,0.00033424,14]
[339779541,1727982667872,-500.0,0.00033424,120]
[339779542,1727982667881,-500.0,0.00033424,120]
[339779543,1727982667891,-500.0,0.00033424,120]
[339779544,1727982667902,-1087.98,0.00033424,120]
[339779545,1727982667911,-500.0,0.00033424,120]
[339779546,1727982667920,-636.89549843,0.00033424,120]
[339779547,1727982667932,-1944.65,0.00033424,120]
[339779548,1727982667941,-500.0,0.00033424,120]
[339779549,1727982667951,-500.0,0.00033424,120]
[339779550,1727982667960,-2426.19,0.00033424,120]
[339779551,1727982667971,-500.0,0.00033424,120]
[339779552,1727982667981,-512.41,0.00033424,120]
[339779553,1727982667990,-1354.13,0.00033424,120]
[339779554,1727982668000,-1571.78,0.00033424,120]
[339779555,1727982668009,-500.0,0.00033424,120]
[339779556,1727982668018,-2593.61,0.00033424,120]
[339779557,1727982668028,-500.0,0.00033424,120]
[339779558,1727982668038,-1183.98,0.00033424,120]
[339779559,1727982668047,-500.0,0.00033424,120]
[339779560,1727982668057,-668.36,0.00033424,120]
[339779561,1727982668066,-500.0,0.00033424,120]
[339779562,1727982668076,-500.0,0.00033424,120]
[339779563,1727982668085,-845.32,0.00033424,120]
[339779564,1727982668095,-764.08,0.00033424,120]
[339779565,1727982668105,-3127.91,0.00033424,120]
[339779566,1727982668115,-500.0,0.00033424,120]
[339779567,1727982668124,-500.0,0.00033424,120]
[339779568,1727982668134,-3602.6,0.00033424,120]
[339779569,1727982668144,-1958.2,0.00033424,120]
[339779570,1727982668153,-854.51,0.00033424,120]
[339779571,1727982668162,-1810.34,0.00033424,120]
[339779572,1727982668172,-500.0,0.00033424,15]
[339779573,1727982668183,-3256.55,0.00033424,120]
[339779574,1727982668193,-500.0,0.00033424,120]
[339779575,1727982668202,-500.0,0.00033424,120]
[339779576,1727982668211,-500.0,0.00033424,120]
[339779577,1727982668221,-500.0,0.00033424,120]
[339779578,1727982668230,-741.64,0.00033424,120]
[339779579,1727982668240,-500.0,0.00033424,120]
[339779580,1727982668249,-500.0,0.00033424,120]
[339779581,1727982668259,-500.0,0.00033424,120]